fUST/lending_fUST_20260601
["ID","MTS","AMOUNT","RATE_DAILY","PERIOD"]
[423675742,1780295439000,-246.34274422,0.000188,2]
[423675758,1780295439000,-300.0,0.00019175,2]
[423675752,1780295439000,-1299.63914756,0.00019,2]
[423675756,1780295439000,-300.0,0.00019175,2]
[423675779,1780295439000,-2678.84908063,0.000198,2]
[423675772,1780295439000,-246.34274422,0.000194,2]
[423675794,1780295439000,-1193.43328816,0.000206,2]
[423675792,1780295439000,-2678.84908063,0.000204,2]
[423675789,1780295439000,-2678.84908063,0.000202,2]
[423675788,1780295439000,-2796.21324884,0.000202,2]
[423675783,1780295439000,-2796.21324884,0.0002,2]
[423675787,1780295439000,-1299.63914756,0.0002,2]
[423675791,1780295439000,-2796.21324884,0.000204,2]
[423675760,1780295439000,-300.0,0.00019175,2]
[423675781,1780295439000,-1299.63914756,0.000198,2]
[423675785,1780295439000,-2678.84908063,0.0002,2]
[423675793,1780295439000,-1299.63914756,0.000204,2]
[423675777,1780295439000,-1299.63914756,0.000196,2]
[423675776,1780295439000,-2678.84908063,0.000196,2]
[423675774,1780295439000,-1299.63914756,0.000194,2]
[423675790,1780295439000,-1299.63914756,0.000202,2]
[423676132,1780295447000,-160.0,0.00027,7]
[423676129,1780295447000,-2360.30503051,0.00024623,2]
[423676128,1780295447000,-160.0,0.00023,2]
[423676127,1780295447000,-200.0,0.00022088,2]
[423676126,1780295447000,-154.35022777,0.00021967,2]
[423676124,1780295447000,-2796.21324884,0.000217,2]
[423676125,1780295447000,-2796.21324884,0.000219,2]
[423676122,1780295447000,-202.27073115,0.00021401,2]
[423676121,1780295447000,-2796.21324884,0.000214,2]
[423676123,1780295447000,-2360.30503051,0.00021567,2]
[423676130,1780295447000,-154.35022774,0.00024945,2]
[423676120,1780295447000,-2796.21324884,0.000212,2]
[423676118,1780295447000,-2796.21324884,0.000208,2]
[423676117,1780295447000,-274.03823035,0.000206,2]
[423676115,1780295447000,-501.00826967,0.00018612,2]
[423676116,1780295447000,-1328.74173033,0.000206,2]
[423676133,1780295447000,-160.0,0.00027,3]
[423676131,1780295447000,-152.0,0.00026094,7]
[423676119,1780295447000,-2796.21324884,0.00021,2]
[423676136,1780295447000,-2360.30503051,0.00027678,2]
[423676134,1780295447000,-767.48137801,0.00027,7]
[423676151,1780295447000,-159180.96679841,0.00031,120]
[423676150,1780295447000,-154.35022774,0.000309,2]
[423676149,1780295447000,-2360.30503051,0.00030734,2]
[423676152,1780295447000,-12497.53233952,0.00031,120]
[423676145,1780295447000,-160.0,0.00028,3]
[423676146,1780295447000,-160.0,0.00029,10]
[423676147,1780295447000,-1224.0,0.0003,2]
[423676148,1780295447000,-152.0,0.0003,7]
[423676142,1780295447000,-160.0,0.00028,7]
[423676144,1780295447000,-160.0,0.00028,7]
[423676141,1780295447000,-160.0,0.00028,3]
[423676140,1780295447000,-160.0,0.00028,7]
[423676139,1780295447000,-160.0,0.00028,3]
[423676143,1780295447000,-160.0,0.00028,3]
[423676138,1780295447000,-160.0,0.00028,7]
[423676135,1780295447000,-767.48137801,0.00027,3]
[423676137,1780295447000,-154.35022774,0.00027922,2]
[423676158,1780296471000,156.0,0.00022113,30]
[423676184,1780296632000,-300.0,0.00016607,2]
[423676182,1780296632000,-597.0,0.00016606,2]
[423676191,1780296632000,-485.48984108,0.00016691,2]
[423676183,1780296632000,-300.0,0.00016607,2]
[423676178,1780296632000,-245.5662097,0.0001578,2]
[423676179,1780296632000,-299.39176778,0.00016277,2]
[423676177,1780296632000,-4599.500005,0.00015195,2]
[423676176,1780296632000,-400.499995,0.00015195,2]
[423676181,1780296632000,-204.784623,0.00016348,2]
[423676180,1780296632000,-491.13241939,0.00016277,2]
[423676185,1780296632000,-381.60313788,0.00016609,2]
[423676192,1780296632000,-1284.9147405,0.00016694,2]
[423676188,1780296632000,-289.52779449,0.00016633,2]
[423676186,1780296632000,-217.18039769,0.00016609,2]
[423676193,1780296632000,-166.05414512,0.00016792,2]
[423676196,1780296632000,-204.93800236,0.00017594,2]
[423676199,1780296632000,-957.89810854,0.000185,2]
[423676198,1780296632000,-160.0,0.00018473,2]
[423676197,1780296632000,-204.784623,0.00018069,2]
[423676194,1780296632000,-285.4724854,0.00017067,2]
[423676189,1780296632000,-355.57707771,0.00016633,2]
[423676190,1780296632000,-389.11610102,0.00016691,2]
[423676187,1780296632000,-736.69862909,0.00016609,2]
[423676195,1780296632000,-196.001254,0.00017461,2]
[423676297,1780296641000,-500.0,0.00018698,2]
[423676299,1780296641000,-500.0,0.00018698,2]
[423676301,1780296641000,-477.34114189,0.00018698,2]
[423676303,1780296641000,-394.5465706,0.00018698,2]
[423676291,1780296641000,-160.0,0.00018553,2]
[423676305,1780296641000,-269.18091218,0.00018698,2]
[423676293,1780296641000,-160.0,0.00018553,2]
[423676289,1780296641000,-1033.41567059,0.000185,2]
[423676295,1780296641000,-500.0,0.00018698,2]
[423676326,1780296641000,-19981.15705464,0.000187,2]
[423676287,1780296641000,-470.45072671,0.000185,2]
[423676316,1780296641000,-46.41853168,0.00018698,2]
[423676322,1780296641000,-1428.34883525,0.000187,2]
[423676364,1780296641000,-1941.18335628,0.000187,2]
[423676354,1780296641000,-2120.24758729,0.000187,2]
[423676351,1780296641000,-2415.87706025,0.000187,2]
[423676343,1780296641000,-105096.60958313,0.000187,2]
[423676341,1780296641000,-2476.95539157,0.000187,2]
[423676320,1780296641000,-318.59671295,0.00018699,2]
[423676330,1780296641000,-5029.17032216,0.000187,2]
[423676318,1780296641000,-500.0,0.00018698,2]
[423676338,1780296641000,-712.58951452,0.000187,2]
[423676328,1780296641000,-3191.72976468,0.000187,2]
[423676324,1780296641000,-1033.41567059,0.000187,2]
[423676849,1780296645000,-3658.80553173,0.00018513,2]
[423676943,1780296646000,-4905.0414327,0.000187,2]
[423676945,1780296646000,-307.708,0.000187,2]
[423676920,1780296646000,-4898.05798879,0.000187,2]
[423676918,1780296646000,-1341.19446827,0.00018513,2]
[423677557,1780297367000,-5000.0,0.000172,2]
[423677559,1780297386000,151.0,0.00012,120]
[423677560,1780297416000,151.0,0.00012,120]
[423677570,1780297456000,151.0,0.00012,120]
[423677573,1780297523000,423.47620086,0.0002215,120]
[423677574,1780297524000,423.47620086,0.0002215,120]
[423677576,1780297524000,423.47620086,0.0002215,120]
[423677575,1780297524000,423.47620086,0.0002215,120]
[423677577,1780297525000,423.47620086,0.0002215,120]
[423677578,1780297525000,423.47620086,0.0002215,120]
[423677579,1780297525000,423.47620086,0.0002215,120]
[423677582,1780297526000,423.47620086,0.0002215,120]
[423677581,1780297526000,423.47620086,0.0002215,120]
[423677580,1780297526000,423.47620086,0.0002215,120]
[423677585,1780297527000,423.47620086,0.0002215,120]
[423677584,1780297527000,423.47620086,0.0002215,120]
[423677583,1780297527000,423.47620086,0.0002215,120]
[423677587,1780297528000,423.47620086,0.0002215,120]
[423677586,1780297528000,423.47620086,0.0002215,120]
[423677635,1780297832000,-8839.96582277,0.00016549,2]
[423677636,1780297832000,-7298.0,0.00016549,2]
[423677633,1780297832000,-300.0,0.00016548,2]
[423677632,1780297832000,-300.0,0.00016548,2]
[423677634,1780297832000,-204.67750425,0.00016549,2]
[423677678,1780297840000,-508.87,0.00017549,2]
[423677669,1780297840000,-6803.2897182,0.00016549,2]
[423677662,1780297840000,-398.97496663,0.00016549,2]
[423677676,1780297840000,-500.0,0.00017549,2]
[423677680,1780297840000,-523.14,0.00017549,2]
[423677664,1780297840000,-498.19580677,0.00016549,2]
[423677671,1780297840000,-5000.0,0.00016594,2]
[423677674,1780297840000,-300.0,0.0001739,2]
[423677672,1780297840000,-196.001254,0.00016931,2]
[423677682,1780297840000,-500.0,0.00017549,2]
[423677686,1780297840000,-500.0,0.00017549,2]
[423677684,1780297840000,-500.0,0.00017549,2]
[423677667,1780297840000,-281.01403108,0.00016549,2]
[423677700,1780297841000,-269.66,0.00018308,2]
[423677704,1780297841000,-269.66,0.0001831,2]
[423677698,1780297841000,-151.55336986,0.000183,93]
[423677706,1780297841000,-269.66,0.0001831,2]
[423677693,1780297841000,-300.0,0.00018082,2]
[423677691,1780297841000,-523.14,0.00017823,2]
[423677702,1780297841000,-269.66,0.00018308,2]
[423677689,1780297841000,-885.11438645,0.00017723,2]
[423677687,1780297841000,-500.0,0.00017549,2]
[423677696,1780297841000,-248.038,0.00018163,2]
[423677708,1780297841000,-269.66,0.0001831,2]
[423677694,1780297841000,-523.14,0.00018097,2]
[423677710,1780297841000,-269.67,0.00018312,2]
[423677712,1780297841000,-269.66,0.00018312,2]
[423677725,1780297841000,-160.0,0.00018487,2]
[423677723,1780297841000,-160.0,0.00018487,2]
[423677719,1780297841000,-4692.94393959,0.000184,2]
[423677731,1780297841000,-192829.06671993,0.00018499,2]
[423677721,1780297841000,-3267.24046035,0.000184,2]
[423677729,1780297841000,-56333.78294821,0.00018499,2]
[423677727,1780297841000,-160.0,0.00018487,2]
[423677716,1780297841000,-523.14,0.00018371,2]
[423677714,1780297841000,-269.66,0.00018312,2]
[423677717,1780297841000,-223.01769907,0.00018399,2]
[423678083,1780297843000,-19368.60863235,0.00018499,2]
[423678047,1780297843000,-568.02726802,0.00018499,2]
[423678071,1780297843000,-543.38155845,0.00018499,2]
[423678073,1780297843000,-1685.13490409,0.00018499,2]
[423678075,1780297843000,-36463.42673225,0.00018499,2]
[423678081,1780297843000,-361.0,0.00018499,2]
[423678092,1780297843000,-3197.03465272,0.00018499,2]
[423678094,1780297843000,-2687.75258541,0.00018499,2]
[423678096,1780297843000,-5239.15198489,0.00018499,2]
[423678088,1780297843000,-2060.3243339,0.00018499,2]
[423678090,1780297843000,-424.17702131,0.00018499,2]
[423678091,1780297843000,-40489.05190787,0.00018499,2]
[423678086,1780297843000,-9881.11499437,0.00018499,2]
[423678397,1780297846000,-18925.42894494,0.00018499,2]
[423678399,1780297846000,-27010.50162175,0.00018499,2]
[423678958,1780298003000,492.49235492,0.00022151,120]
[423678961,1780298004000,492.49235492,0.00022151,120]
[423678959,1780298004000,492.49235492,0.00022151,120]
[423678962,1780298004000,492.49235492,0.00022151,120]
[423678960,1780298004000,492.49235492,0.00022151,120]
[423678965,1780298005000,492.49235492,0.00022151,120]
[423678964,1780298005000,492.49235492,0.00022151,120]
[423678963,1780298005000,492.49235492,0.00022151,120]
[423678968,1780298006000,492.49235492,0.00022151,120]
[423678967,1780298006000,492.49235492,0.00022151,120]
[423678966,1780298006000,492.49235492,0.00022151,120]
[423678971,1780298007000,492.49235492,0.00022151,120]
[423678970,1780298007000,492.49235492,0.00022151,120]
[423678969,1780298007000,492.49235492,0.00022151,120]
[423678973,1780298008000,492.49235492,0.00022151,120]
[423678972,1780298008000,492.49235492,0.00022151,120]
[423678974,1780298009000,492.49235492,0.00022151,120]
[423678976,1780298009000,492.49235492,0.00022151,120]
[423678975,1780298009000,492.49235492,0.00022151,120]
[423678977,1780298010000,492.49235492,0.00022151,120]
[423678978,1780298010000,492.49235492,0.00022151,120]
[423678979,1780298010000,492.49235492,0.00022151,120]
[423678982,1780298011000,492.49235492,0.00022151,120]
[423678981,1780298011000,492.49235492,0.00022151,120]
[423678980,1780298011000,492.49235492,0.00022151,120]
[423678985,1780298012000,492.49235492,0.00022151,120]
[423678984,1780298012000,492.49235492,0.00022151,120]
[423678983,1780298012000,492.49235492,0.00022151,120]
[423678986,1780298013000,492.49235492,0.00022151,120]
[423678994,1780298123000,164.16411827,0.00022151,120]
[423678996,1780298124000,164.16411827,0.00022151,120]
[423678995,1780298124000,164.16411827,0.00022151,120]
[423679134,1780299032000,-4090.45949331,0.00015364,2]
[423679144,1780299032000,-1200.0,0.00018098,2]
[423679147,1780299032000,-300.0,0.00018099,2]
[423679138,1780299032000,-333.1348242,0.00016742,2]
[423679142,1780299032000,-774.47508817,0.00018098,2]
[423679127,1780299032000,-909.54050669,0.00015364,2]
[423679146,1780299032000,-500.0,0.00018099,2]
[423679136,1780299032000,-166.5674121,0.00015994,2]
[423679149,1780299032000,-500.0,0.00018099,2]
[423679151,1780299032000,-500.0,0.00018099,2]
[423679153,1780299032000,-500.0,0.00018099,2]
[423679155,1780299032000,-290.05361619,0.00018099,2]
[423679161,1780299032000,-156.11238935,0.00018099,2]
[423679157,1780299032000,-188.57786973,0.00018099,2]
[423679163,1780299032000,-2251.90412868,0.000181,2]
[423679159,1780299032000,-311.42213027,0.00018099,2]
[423679140,1780299032000,-499.7022363,0.0001724,2]
[423679165,1780299032000,-679.23543468,0.000181,2]
[423679296,1780299038000,-10351.29328183,0.000181,2]
[423679290,1780299038000,-3337.73803097,0.000181,2]
[423679287,1780299038000,-887.57448921,0.000181,2]
[423679259,1780299038000,-281491.09599682,0.000181,2]
[423679621,1780299041000,-8200.20328701,0.000181,2]
[423679613,1780299041000,-1346.44188268,0.000181,2]
[423679631,1780299041000,-1129.19441864,0.000181,2]
[423679625,1780299041000,-2774.967945,0.000181,2]
[423679633,1780299041000,-1368.13319676,0.000181,2]
[423679623,1780299041000,-726.24112291,0.000181,2]
[423679686,1780299044000,-3678.4336492,0.000181,2]
[423679688,1780299044000,-2216.40780319,0.000181,2]
[423679690,1780299044000,-7168.98682092,0.000181,2]
[423679698,1780299046000,-620.66708974,0.000181,2]
[423679697,1780299046000,-688.92404718,0.000181,2]
[423679704,1780299167000,-222.0898828,0.0001764,2]
[423679910,1780300233000,-254.4504018,0.00017898,2]
[423679890,1780300233000,-2296.90133526,0.00016875,2]
[423679900,1780300233000,-300.47813521,0.00017548,2]
[423679898,1780300233000,-1500.0,0.00017111,2]
[423679894,1780300233000,-3588.90833634,0.00017097,2]
[423679902,1780300233000,-380.607,0.0001764,2]
[423679892,1780300233000,-444.1797656,0.00017027,2]
[423679888,1780300233000,-1292.00700108,0.00016875,2]
[423679886,1780300233000,-717.78166727,0.00016875,2]
[423679884,1780300233000,-300.0,0.00016874,2]
[423679880,1780300233000,-5000.0,0.00016528,2]
[423679896,1780300233000,-845.57304924,0.00017111,2]
[423679904,1780300233000,-374.78099719,0.00017763,2]
[423679882,1780300233000,-222.0898828,0.00016695,2]
[423679906,1780300233000,-677.66570214,0.000178,2]
[423679931,1780300233000,-391.67015375,0.000179,2]
[423679929,1780300233000,-14583.8,0.000179,2]
[423679927,1780300233000,-7355.63810644,0.000179,2]
[423679925,1780300233000,-500.0,0.00017899,2]
[423679923,1780300233000,-531.69003641,0.00017898,2]
[423679936,1780300233000,-5152.0,0.000179,2]
[423679908,1780300233000,-500.0,0.00017898,2]
[423679921,1780300233000,-500.0,0.00017898,2]
[423679912,1780300233000,-500.0,0.00017898,2]
[423679916,1780300233000,-500.0,0.00017898,2]
[423679934,1780300233000,-538.94250072,0.000179,2]
[423679918,1780300233000,-312.45646364,0.00017898,2]
[423679914,1780300233000,-500.0,0.00017898,2]
[423679920,1780300233000,-500.0,0.00017898,2]
[423680037,1780300238000,-273.71904665,0.00016706,2]
[423680058,1780300239000,-363.75,0.00016706,2]
[423680333,1780300241000,-4362.53095335,0.00016706,2]
[423680335,1780300241000,-208.21166511,0.00016875,2]
[423680337,1780300241000,-8769.39634965,0.000179,2]
[423681048,1780300246000,-302067.42270323,0.000179,2]
[423681041,1780300246000,-36350.0,0.000179,2]
[423681455,1780300910000,-2670.0738311,0.0001188,2]
[423681491,1780301310000,-5000.0,0.00011643,2]
[423681498,1780301313000,-203.57643111,0.00015877,2]
[423681496,1780301313000,-151.6,0.000132,2]
[423681495,1780301313000,-151.6,0.000126,2]
[423681494,1780301313000,-151.6,0.00012,2]
[423681497,1780301313000,-666.27732834,0.00014659,2]
[423681499,1780301313000,-226.52690971,0.0001624,2]
[423681501,1780301313000,-1200.0,0.00016704,2]
[423681500,1780301313000,-407.15286223,0.00016376,2]
[423681505,1780301313000,-976.42822437,0.00016705,2]
[423681503,1780301313000,-388.08476424,0.00016705,2]
[423681502,1780301313000,-300.0,0.00016704,2]
[423681504,1780301313000,-177.15348,0.00016705,2]
[423681506,1780301318000,-5000.0,0.00016705,2]
[423681507,1780301320000,-5000.0,0.00016538,2]
[423681514,1780301322000,-679.58072914,0.00017073,2]
[423681508,1780301322000,-1719.67431289,0.00016705,2]
[423681509,1780301322000,-610.72929334,0.00016709,2]
[423681511,1780301322000,-281.29889293,0.00017072,2]
[423681510,1780301322000,-453.05381942,0.0001674,2]
[423681513,1780301322000,-412.51430363,0.00017073,2]
[423681515,1780301322000,-244.044345,0.00017155,2]
[423681516,1780301322000,-297.91928921,0.000176,87]
[423681517,1780301322000,-83.16135774,0.000176,87]
[423681512,1780301322000,-218.0236567,0.00017073,2]
[423681521,1780301324000,-4102.24352453,0.000176,2]
[423681520,1780301324000,-330.9857829,0.000176,87]
[423681518,1780301324000,-239.87820132,0.000176,87]
[423681519,1780301324000,-326.89249125,0.000176,87]
[423681523,1780301375000,-5000.0,0.00017424,2]
[423681525,1780301377000,-4700.0,0.000176,2]
[423681524,1780301377000,-300.0,0.00017599,2]
[423681526,1780301403000,-5000.0,0.00017424,2]
[423681527,1780301410000,-5000.0,0.00017423,2]
[423681529,1780301428000,-300.0,0.00017599,2]
[423681528,1780301428000,-260.2644773,0.000175,86]
[423681530,1780301428000,-4439.7355227,0.000176,2]
[423681540,1780301432000,-502.4442,0.000176,2]
[423681541,1780301432000,-151.0,0.00017599,2]
[423681542,1780301432000,-281.3356178,0.000176,2]
[423681539,1780301432000,-12644.64271655,0.000176,2]
[423681543,1780301438000,-5000.0,0.00017424,2]
[423681580,1780301441000,-260.2644773,0.000175,86]
[423681582,1780301441000,-279.24014181,0.000175,86]
[423681584,1780301441000,-279.24014181,0.000175,86]
[423681609,1780301441000,-13602.84797964,0.000176,2]
[423681586,1780301441000,-282.1400471,0.000175,86]
[423681604,1780301441000,-690.15553441,0.000176,2]
[423681607,1780301441000,-4681.54622423,0.000176,2]
[423681588,1780301441000,-2735.94422946,0.000176,2]
[423681938,1780301444000,-282.1400471,0.000175,86]
[423681940,1780301444000,-285.21953166,0.000175,86]
[423681942,1780301444000,-5694.0626974,0.000176,2]
[423681947,1780301444000,-3308.57063783,0.000176,2]
[423681945,1780301444000,-1340.82263706,0.000176,2]
[423681949,1780301444000,-471.77632926,0.000176,2]
[423681979,1780301444000,-7088.7351459,0.000176,2]
[423681982,1780301444000,-27742.66386518,0.000176,2]
[423681988,1780301444000,-44936.71127128,0.000176,2]
[423681951,1780301444000,-729.67770619,0.000176,2]
[423682306,1780301446000,-3844.89310718,0.000176,2]
[423682297,1780301446000,-6049.30059431,0.000176,2]
[423682878,1780301540000,-2558.0,0.00017424,2]
[423682968,1780302632000,-378.08614315,0.00015766,2]
[423682967,1780302632000,-332.30240207,0.00015766,2]
[423683042,1780302638000,-353.54467951,0.00017999,2]
[423683034,1780302638000,-152.0,0.00017732,2]
[423683040,1780302638000,-536.3958445,0.00017873,2]
[423683024,1780302638000,-285.21953166,0.000175,86]
[423683011,1780302638000,-991.83812677,0.00015926,2]
[423683004,1780302638000,-300.0,0.00015925,2]
[423683006,1780302638000,-548.71343267,0.00015926,2]
[423683020,1780302638000,-400.0,0.0001749,2]
[423683009,1780302638000,-247.95953169,0.00015926,2]
[423683026,1780302638000,-500.0,0.00017599,2]
[423683019,1780302638000,-199.0,0.00017413,2]
[423683014,1780302638000,-560.72323715,0.00016869,7]
[423683002,1780302638000,-4289.61145478,0.00015766,2]
[423683012,1780302638000,-2229.40414945,0.00015926,2]
[423683022,1780302638000,-400.0,0.0001749,3]
[423683028,1780302638000,-152.0,0.00017697,2]
[423683016,1780302638000,-357.661,0.0001715,2]
[423683038,1780302638000,-258.85347512,0.000178,2]
[423683043,1780302638000,-500.0,0.00017999,2]
[423683069,1780302638000,-1017.19671665,0.000185,2]
[423683067,1780302638000,-160.0,0.00018435,2]
[423683051,1780302638000,-404.77255825,0.00018099,2]
[423683065,1780302638000,-160.0,0.00018435,2]
[423683049,1780302638000,-224.87364347,0.00018099,2]
[423683057,1780302638000,-600.0,0.00018257,2]
[423683053,1780302638000,-635.75993628,0.00018099,2]
[423683055,1780302638000,-368.981166,0.00018257,2]
[423683063,1780302638000,-160.0,0.00018435,2]
[423683061,1780302638000,-160.0,0.00018435,2]
[423683059,1780302638000,-500.0,0.00018273,2]
[423683045,1780302638000,-1000.0,0.00018,2]
[423683030,1780302638000,-152.0,0.00017697,2]
[423683032,1780302638000,-152.0,0.00017732,2]
[423683036,1780302638000,-880.7053795,0.00017757,7]
[423683047,1780302638000,-353.1999646,0.00018099,2]
[423683091,1780302639000,-718.87606345,0.00018985,2]
[423683098,1780302639000,-500.0,0.00019095,2]
[423683110,1780302639000,-500.0,0.00019917,2]
[423683103,1780302639000,-500.0,0.00019369,2]
[423683116,1780302639000,-1129.10964684,0.00019985,2]
[423683105,1780302639000,-293.32428321,0.00019453,2]
[423683107,1780302639000,-500.0,0.00019643,2]
[423683097,1780302639000,-368.981166,0.00019025,2]
[423683109,1780302639000,-368.981166,0.00019794,2]
[423683100,1780302639000,-1017.19671665,0.000192,2]
[423683071,1780302639000,-1653.46507294,0.000185,2]
[423683093,1780302639000,-1017.19671665,0.00019,2]
[423683080,1780302639000,-1017.19671665,0.000188,2]
[423683089,1780302639000,-500.0,0.00018821,2]
[423683079,1780302639000,-592.95748939,0.000187,2]
[423683086,1780302639000,-1653.46507294,0.000188,2]
[423683077,1780302639000,-1653.46507294,0.000186,2]
[423683075,1780302639000,-1017.19671665,0.000186,2]
[423683128,1780302639000,-500.0,0.00020739,2]
[423683073,1780302639000,-500.0,0.00018547,2]
[423683095,1780302639000,-1653.46507294,0.00019,2]
[423683124,1780302639000,-368.981166,0.00020563,2]
[423683101,1780302639000,-1653.46507294,0.000192,2]
[423683118,1780302639000,-720.0,0.00020083,2]
[423683161,1780302639000,-558301.14826324,0.00021991,2]
[423683156,1780302639000,-180.82,0.00021922,7]
[423683155,1780302639000,-150.639962,0.00021918,30]
[423683151,1780302639000,-500.0,0.00021561,2]
[423683141,1780302639000,-204.85,0.000212,2]
[423683143,1780302639000,-1093.66690958,0.00021243,2]
[423683153,1780302639000,-500.0,0.00021835,2]
[423683139,1780302639000,-169.50141602,0.00021018,2]
[423683137,1780302639000,-500.0,0.00021013,2]
[423683135,1780302639000,-169.50141602,0.00020918,2]
[423683149,1780302639000,-592.95748934,0.00021443,2]
[423683147,1780302639000,-368.981166,0.00021331,2]
[423683145,1780302639000,-500.0,0.00021287,2]
[423683122,1780302639000,-500.0,0.00020465,2]
[423683159,1780302639000,-180.8398543,0.00021972,7]
[423683120,1780302639000,-500.0,0.00020191,2]
[423683126,1780302639000,-169.50141602,0.00020718,2]
[423683130,1780302639000,-155.41279157,0.00020815,2]
[423683132,1780302639000,-169.50141602,0.00020818,2]
[423683112,1780302639000,-329764.12722553,0.00019983,2]
[423683133,1780302639000,-389.3299,0.000209,2]
[423683114,1780302639000,-1370235.87277447,0.00019983,2]
[423683771,1780302645000,-152.0,0.00017764,2]
[423683772,1780302645000,-152.0,0.00017764,2]
[423683773,1780302645000,-21687.78957234,0.00021991,2]
[423683783,1780302646000,-2354.60075079,0.00021991,2]
[423683784,1780302646000,-3844.89549537,0.00021991,2]
[423683789,1780302767000,-152.0,0.00017729,2]
[423683906,1780303832000,-860.01838072,0.00015872,2]
[423683904,1780303832000,-1211.38223203,0.00015872,2]
[423683901,1780303832000,-358.05528406,0.00015872,2]
[423683899,1780303832000,-1200.13589101,0.00015872,2]
[423683898,1780303832000,-2271.4506766,0.00015713,2]
[423684751,1780303846000,-780.49345,0.00015872,2]
[423684985,1780303848000,-500.0,0.00017372,2]
[423684989,1780303848000,-505.4671386,0.00017372,2]
[423684995,1780303848000,-500.0,0.00017372,2]
[423684991,1780303848000,-500.0,0.00017372,2]
[423684987,1780303848000,-500.0,0.00017372,2]
[423684968,1780303848000,-500.0,0.00017372,2]
[423684966,1780303848000,-300.0,0.00017372,2]
[423684981,1780303848000,-500.0,0.00017372,2]
[423684977,1780303848000,-500.0,0.00017372,2]
[423684979,1780303848000,-500.0,0.00017372,2]
[423684974,1780303848000,-500.0,0.00017372,2]
[423684960,1780303848000,-285.91476218,0.00015872,2]
[423684971,1780303848000,-500.0,0.00017372,2]
[423684962,1780303848000,-465.44013504,0.00017274,2]
[423684964,1780303848000,-300.0,0.00017372,2]
[423684928,1780303848000,-304.0,0.00015872,2]
[423684997,1780303848000,-500.0,0.00017372,2]
[423684983,1780303848000,-500.0,0.00017372,2]
[423684999,1780303848000,-500.0,0.00017372,2]
[423684993,1780303848000,-500.0,0.00017372,2]
[423685005,1780303848000,-500.0,0.00017372,2]
[423685001,1780303848000,-500.0,0.00017372,2]
[423685035,1780303848000,-500.0,0.00017373,2]
[423685039,1780303848000,-182.26905389,0.00017427,2]
[423685033,1780303848000,-7607.6676741,0.00017373,2]
[423685011,1780303848000,-500.0,0.00017372,2]
[423685018,1780303848000,-500.0,0.00017372,2]
[423685016,1780303848000,-500.0,0.00017372,2]
[423685031,1780303848000,-500.0,0.00017372,2]
[423685030,1780303848000,-500.0,0.00017372,2]
[423685012,1780303848000,-500.0,0.00017372,2]
[423685026,1780303848000,-500.0,0.00017372,2]
[423685024,1780303848000,-500.0,0.00017372,2]
[423685028,1780303848000,-500.0,0.00017372,2]
[423685022,1780303848000,-500.0,0.00017372,2]
[423685020,1780303848000,-500.0,0.00017372,2]
[423685009,1780303848000,-500.0,0.00017372,2]
[423685037,1780303848000,-12623.34108908,0.00017376,9]
[423685007,1780303848000,-500.0,0.00017372,2]
[423685003,1780303848000,-500.0,0.00017372,2]
[423685014,1780303848000,-500.0,0.00017372,2]
[423685056,1780303849000,-205.147751,0.00018142,2]
[423685055,1780303849000,-500.0,0.00017921,2]
[423685053,1780303849000,-152.0,0.00017764,2]
[423685043,1780303849000,-177.51028848,0.00017427,2]
[423685045,1780303849000,-178.12457514,0.00017427,2]
[423685049,1780303849000,-152.0,0.00017729,2]
[423685047,1780303849000,-500.0,0.00017647,2]
[423685041,1780303849000,-160.54247104,0.00017427,2]
[423685059,1780303849000,-164.82145933,0.00018158,2]